fUST/lending_fUST_20240508
["ID","MTS","AMOUNT","RATE_DAILY","PERIOD"]
[326549087,1715103042423,-500.0,0.00016712,2]
[326549088,1715103042433,-500.0,0.00016712,2]
[326549089,1715103042443,-137.9004334,0.00016712,2]
[326549325,1715103997335,1399.99750126,9.999e-05,2]
[326549328,1715104235470,-247.687877,0.00015346,2]
[326549330,1715104235481,-209.193374,0.0001589,2]
[326549333,1715104235492,-171.625586,0.0001589,2]
[326549335,1715104235503,-7948.04730527,0.00016,2]
[326549340,1715104235523,-364.14608624,0.00016338,2]
[326549342,1715104235537,-475.35402396,0.00016436,2]
[326549343,1715104235558,-615.13758525,0.00016436,2]
[326549345,1715104235570,-2102.35981509,0.00016436,2]
[326549350,1715104235589,-240.19230089,0.00016436,2]
[326549353,1715104235600,-2153.06372081,0.00016436,2]
[326549355,1715104235611,-414.27722311,0.00016436,2]
[326549361,1715104235653,-154.75239617,0.00016436,2]
[326549364,1715104235664,-285.93150749,0.00016436,2]
[326549366,1715104235674,-154.76784823,0.00016437,2]
[326549368,1715104235688,-500.0,0.00016438,2]
[326549371,1715104235698,-500.0,0.00016438,2]
[326549373,1715104235714,-557.88,0.00016438,2]
[326549375,1715104235725,-500.0,0.00016438,2]
[326549378,1715104235736,-818.8,0.00016438,2]
[326549379,1715104235749,-500.0,0.00016438,2]
[326549381,1715104235761,-500.0,0.00016438,2]
[326549382,1715104235776,-500.0,0.00016438,2]
[326549383,1715104235796,-607.58,0.00016438,2]
[326549386,1715104235819,-500.0,0.00016438,2]
[326549387,1715104235837,-500.0,0.00016438,2]
[326549388,1715104235861,-2231.13,0.00016438,2]
[326549389,1715104235871,-500.0,0.00016438,2]
[326549390,1715104235885,-500.0,0.00016438,2]
[326549392,1715104235896,-500.0,0.00016438,2]
[326549394,1715104235907,-1082.33,0.00016438,2]
[326549396,1715104235917,-500.0,0.00016438,2]
[326549397,1715104235930,-500.0,0.00016438,2]
[326549400,1715104235961,-500.0,0.00016438,2]
[326549402,1715104235971,-500.0,0.00016438,2]
[326549405,1715104235998,-500.0,0.00016438,2]
[326549406,1715104236087,-500.0,0.00016438,2]
[326549407,1715104236100,-500.0,0.00016438,2]
[326549408,1715104236112,-500.0,0.00016438,2]
[326549409,1715104236141,-616.76,0.00016438,2]
[326549410,1715104236152,-753.6,0.00016438,2]
[326549411,1715104236164,-500.0,0.00016438,2]
[326549412,1715104236201,-500.0,0.00016438,2]
[326549413,1715104236225,-500.0,0.00016438,2]
[326549414,1715104236249,-764.06,0.00016438,2]
[326549415,1715104236274,-500.0,0.00016438,2]
[326549416,1715104236285,-500.0,0.00016438,2]
[326549417,1715104236296,-504.95,0.00016438,2]
[326549418,1715104236308,-500.0,0.00016438,2]
[326549419,1715104236325,-500.0,0.00016438,2]
[326549420,1715104236337,-546.34,0.00016438,2]
[326549421,1715104236350,-500.0,0.00016438,2]
[326549422,1715104236375,-500.0,0.00016438,2]
[326549423,1715104236408,-500.0,0.00016438,2]
[326549424,1715104236455,-464.48221216,0.00016438,2]
[326549425,1715104236520,-500.0,0.00016438,2]
[326549426,1715104236542,-500.0,0.00016438,2]
[326549427,1715104236554,-136.31301577,0.00016438,2]
[326549448,1715104244181,-1399.99750126,0.00015345,2]
[326549457,1715104244225,-363.68698423,0.00016438,2]
[326549460,1715104244237,-1810.4,0.00016438,2]
[326549461,1715104244247,-500.0,0.00016438,2]
[326549467,1715104244303,-800.33,0.00016438,2]
[326549468,1715104244314,-613.07,0.00016438,2]
[326549475,1715104244411,-500.0,0.00016438,2]
[326549476,1715104244422,-815.26,0.00016438,2]
[326549477,1715104244448,-500.0,0.00016438,2]
[326549478,1715104244460,-500.0,0.00016438,2]
[326549479,1715104244470,-500.0,0.00016438,2]
[326549481,1715104244491,-500.0,0.00016438,2]
[326549486,1715104244556,-503.61709478,0.00016438,2]
[326549487,1715104244567,-500.0,0.00016438,2]
[326549488,1715104244603,-636.85,0.00016438,2]
[326549489,1715104244647,-829.43,0.00016438,2]
[326549490,1715104244718,-500.0,0.00016438,2]
[326549491,1715104244732,-500.0,0.00016438,2]
[326549492,1715104244742,-1047.6,0.00016438,2]
[326549493,1715104244776,-500.0,0.00016438,2]
[326549494,1715104244787,-1174.99,0.00016438,2]
[326549495,1715104244801,-965.01518723,0.00016438,2]
[326549496,1715104244820,-209.97481277,0.00016438,2]
[326549497,1715104244832,-601.01012239,0.00016438,2]
[326549498,1715104254574,-505.34987761,0.00016438,2]
[326549501,1715104254585,-500.0,0.00016438,2]
[326549504,1715104254599,-500.0,0.00016438,2]
[326549507,1715104254615,-500.0,0.00016438,2]
[326549509,1715104254653,-3790.35,0.00016438,2]
[326549510,1715104254664,-500.0,0.00016438,2]
[326549511,1715104254674,-6205.75,0.00016438,2]
[326549512,1715104254696,-500.0,0.00016438,2]
[326549514,1715104254734,-500.0,0.00016438,2]
[326549515,1715104254744,-500.0,0.00016438,2]
[326549516,1715104254754,-665.68,0.00016438,2]
[326549517,1715104254768,-500.0,0.00016438,2]
[326549518,1715104254784,-1514.86,0.00016438,2]
[326549519,1715104254794,-500.0,0.00016438,2]
[326549520,1715104254828,-544.7714739,0.00016438,2]
[326549521,1715104254838,-500.0,0.00016438,2]
[326549522,1715104254855,-487.28272174,0.00016438,2]
[326549523,1715104254879,-1318.94,0.00016438,2]
[326549524,1715104254906,-500.0,0.00016438,2]
[326549525,1715104254916,-500.0,0.00016438,2]
[326549526,1715104254930,-500.0,0.00016438,2]
[326549527,1715104254942,-500.0,0.00016438,2]
[326549528,1715104254953,-500.0,0.00016438,2]
[326549529,1715104255008,-500.0,0.00016438,2]
[326549530,1715104255018,-1598.28,0.00016438,2]
[326549531,1715104255029,-500.0,0.00016438,2]
[326549532,1715104255039,-500.0,0.00016438,2]
[326549533,1715104255058,-500.0,0.00016438,2]
[326549534,1715104255072,-3438.67731642,0.00016438,2]
[326549536,1715104684087,1399.99750126,9.999e-05,2]
[326549559,1715105139022,1399.99750126,9.999e-05,2]
[326549593,1715105434930,-622.11384583,0.00015889,2]
[326549595,1715105434946,-777.88365543,0.00015889,2]
[326549598,1715105434960,-214.833891,0.0001589,2]
[326549603,1715105434970,-171.760518,0.0001589,2]
[326549606,1715105434981,-7948.04730527,0.00016,2]
[326549610,1715105434992,-362.968533,0.00016023,2]
[326549616,1715105435011,-321.699817,0.00016023,2]
[326549618,1715105435026,-362.968533,0.00016223,2]
[326549621,1715105435037,-321.699817,0.00016223,2]
[326549623,1715105435051,-203.87238744,0.00016338,2]
[326549624,1715105435064,-169.86210084,0.00016338,2]
[326549626,1715105435079,-306.0,0.000164,2]
[326549628,1715105435097,-153.0,0.000164,2]
[326549629,1715105435113,-155.0435859,0.000164,2]
[326549631,1715105435124,-362.968533,0.00016424,2]
[326549633,1715105435137,-321.699817,0.00016424,2]
[326549634,1715105435148,-238.06251192,0.00016435,2]
[326549636,1715105435158,-722.2,0.00016435,2]
[326549638,1715105435173,-500.0,0.00016435,2]
[326549640,1715105435183,-500.0,0.00016435,2]
[326549641,1715105435195,-500.0,0.00016435,2]
[326549642,1715105435211,-1734.97,0.00016435,2]
[326549643,1715105435230,-500.0,0.00016435,2]
[326549644,1715105435249,-766.98,0.00016435,2]
[326549645,1715105435266,-500.0,0.00016435,2]
[326549646,1715105435277,-619.57524388,0.00016435,2]
[326549647,1715105435295,-500.0,0.00016435,2]
[326549648,1715105435311,-500.0,0.00016435,2]
[326549649,1715105435330,-456.97952061,0.00016435,2]
[326549650,1715105435343,-158.45520766,0.00016435,2]
[326549651,1715105435355,-500.0,0.00016435,2]
[326549652,1715105435371,-1583.16156104,0.00016435,2]
[326549653,1715105435385,-500.0,0.00016435,2]
[326549654,1715105435400,-500.0,0.00016435,2]
[326549655,1715105435410,-894.11068204,0.00016436,2]
[326549656,1715105435421,-154.73694719,0.00016436,2]
[326549657,1715105435437,-307.60705671,0.00016436,2]
[326549658,1715105435454,-397.26833046,0.00016436,2]
[326549659,1715105435465,-155.14890182,0.00016436,2]
[326549660,1715105435482,-500.0,0.00016436,2]
[326549661,1715105435501,-500.0,0.00016436,2]
[326549662,1715105435523,-2381.87164186,0.00016437,2]
[326549663,1715105435535,-785.32231489,0.00016437,2]
[326549664,1715105435546,-1003.95,0.00016437,2]
[326549665,1715105435561,-328.6227342,0.00016437,2]
[326549666,1715105435573,-500.0,0.00016437,2]
[326549667,1715105435590,-1089.03,0.00016437,2]
[326549668,1715105435608,-529.82,0.00016437,2]
[326549669,1715105435623,-523.58,0.00016437,2]
[326549670,1715105435637,-500.0,0.00016437,2]
[326549671,1715105435649,-500.0,0.00016437,2]
[326549672,1715105435660,-500.0,0.00016437,2]
[326549673,1715105435671,-500.0,0.00016437,2]
[326549674,1715105435681,-1531.68,0.00016437,2]
[326549675,1715105435694,-500.0,0.00016437,2]
[326549676,1715105435705,-358.44061054,0.00016437,2]
[326549677,1715105435718,-2519.2,0.00016437,2]
[326549678,1715105435738,-500.0,0.00016437,2]
[326549679,1715105435774,-500.0,0.00016437,2]
[326549680,1715105435789,-500.0,0.00016437,2]
[326549681,1715105435802,-500.0,0.00016437,2]
[326549682,1715105435821,-781.29,0.00016437,2]
[326549683,1715105435831,-500.0,0.00016437,2]
[326549684,1715105435842,-500.0,0.00016437,2]
[326549685,1715105435860,-500.0,0.00016437,2]
[326549686,1715105435870,-500.0,0.00016437,2]
[326549687,1715105435884,-500.0,0.00016437,2]
[326549688,1715105435896,-500.0,0.00016437,2]
[326549689,1715105435906,-500.0,0.00016437,2]
[326549690,1715105435921,-500.0,0.00016437,2]
[326549691,1715105435933,-500.0,0.00016437,2]
[326549692,1715105435943,-500.0,0.00016437,2]
[326549693,1715105435958,-500.0,0.00016437,2]
[326549694,1715105435970,-610.31,0.00016437,2]
[326549695,1715105435987,-826.06,0.00016437,2]
[326549696,1715105435998,-804.66,0.00016437,2]
[326549697,1715105436012,-500.0,0.00016437,2]
[326549698,1715105436025,-500.0,0.00016437,2]
[326549699,1715105436048,-815.7,0.00016437,2]
[326549700,1715105436075,-784.68,0.00016437,2]
[326549701,1715105436085,-3300.09,0.00016437,2]
[326549702,1715105436112,-500.0,0.00016437,2]
[326549703,1715105436130,-500.0,0.00016437,2]
[326549704,1715105436140,-1922.39,0.00016437,2]
[326549705,1715105436151,-1015.21,0.00016437,2]
[326549706,1715105436162,-500.0,0.00016437,2]
[326549707,1715105436178,-500.0,0.00016437,2]
[326549708,1715105436194,-500.0,0.00016437,2]
[326549709,1715105436216,-500.0,0.00016437,2]
[326549710,1715105436237,-3632.42,0.00016437,2]
[326549711,1715105436255,-500.0,0.00016437,2]
[326549712,1715105436268,-500.0,0.00016437,2]
[326549713,1715105436290,-500.0,0.00016437,2]
[326549714,1715105436313,-500.0,0.00016437,2]
[326549715,1715105436330,-999.61,0.00016437,2]
[326549716,1715105436344,-500.0,0.00016437,2]
[326549717,1715105436356,-1077.08,0.00016437,2]
[326549718,1715105436366,-1077.08,0.00016437,2]
[326549719,1715105436380,-1077.08,0.00016437,2]
[326549720,1715105436407,-167.38990629,0.00016437,2]
[326549721,1715105436419,-3555.8,0.00016437,2]
[326549722,1715105436431,-500.0,0.00016437,2]
[326549723,1715105436456,-500.0,0.00016437,2]
[326549724,1715105436467,-565.58074941,0.00016437,2]
[326549728,1715105447528,-1796.48142971,0.00016436,2]
[326549730,1715105447539,-698.40925059,0.00016437,2]
[326549733,1715105447550,-3537.4993197,0.00016437,2]
[326549737,1715105447574,-1423.9206803,0.00016437,2]
[326549741,1715105447589,-251.9693197,0.00016437,2]
[326549744,1715105447607,-248.0306803,0.00016437,2]
[326549746,1715105447619,-251.74498786,0.00016437,2]
[326549764,1715105450318,-5357.13501214,0.00016437,2]
[326549766,1715105450335,-554.13,0.00016437,2]
[326549768,1715105450345,-1116.88,0.00016437,2]
[326549770,1715105450355,-1191.74,0.00016437,2]
[326549772,1715105450369,-1451.74,0.00016437,2]
[326549774,1715105450379,-500.0,0.00016437,2]
[326549777,1715105450408,-500.0,0.00016437,2]
[326549778,1715105450421,-3743.64,0.00016437,2]
[326549779,1715105450436,-2869.12947231,0.00016437,2]
[326549780,1715105450452,-1656.01052769,0.00016437,2]
[326549781,1715105450466,-994.63760533,0.00016437,2]
[326554997,1715105708187,1196.1619,0.00015,2]
[326554998,1715105783588,3000.0,0.00015,2]
[326554999,1715105873569,1399.99750126,9.999e-05,2]
[326555000,1715106320181,1399.99750126,9.999e-05,2]
[326555053,1715106639409,-219.880758,0.0001589,2]
[326555056,1715106639419,-209.193374,0.0001589,2]
[326555058,1715106639428,-7948.04730527,0.00016,2]
[326555059,1715106639438,-991.46263386,0.00016,2]
[326555061,1715106639448,-362.968534,0.00016023,2]
[326555063,1715106639458,-362.968534,0.00016223,2]
[326555066,1715106639467,-194.28143752,0.00016336,2]
[326555069,1715106639477,-306.0,0.000164,2]
[326555072,1715106639486,-153.0,0.000164,2]
[326555075,1715106639496,-153.0,0.000164,2]
[326555078,1715106639506,-153.0,0.000164,2]
[326555079,1715106639518,-307.4028549,0.000164,2]
[326555082,1715106639528,-162.1824582,0.000164,2]
[326555085,1715106639537,-153.0,0.000164,2]
[326555088,1715106639547,-153.0,0.000164,2]
[326555091,1715106639557,-362.968534,0.00016424,2]
[326555094,1715106639567,-891.3633452,0.00016434,2]
[326555097,1715106639577,-500.0,0.00016434,2]
[326555100,1715106639587,-500.0,0.00016434,2]
[326555103,1715106639597,-500.0,0.00016434,2]
[326555106,1715106639607,-500.0,0.00016434,2]
[326555109,1715106639616,-413.79090332,0.00016435,2]
[326555112,1715106639626,-500.0,0.00016435,2]
[326555114,1715106639636,-500.0,0.00016435,2]
[326555117,1715106639646,-962.12,0.00016435,2]
[326555120,1715106639656,-500.0,0.00016435,2]
[326555123,1715106639667,-500.0,0.00016435,2]
[326555126,1715106639677,-1842.29,0.00016435,2]
[326555129,1715106639686,-816.68,0.00016435,2]
[326555132,1715106639696,-500.0,0.00016435,2]
[326555135,1715106639706,-250.51480045,0.00016435,2]
[326555138,1715106639716,-500.0,0.00016435,2]
[326555141,1715106639726,-500.0,0.00016435,2]
[326555144,1715106639736,-965.59,0.00016435,2]
[326555147,1715106639746,-500.0,0.00016435,2]
[326555150,1715106639756,-3741.31,0.00016435,2]
[326555153,1715106639768,-1070.35,0.00016435,2]
[326555156,1715106639777,-500.0,0.00016435,2]
[326555159,1715106639787,-751.99,0.00016435,2]
[326555161,1715106639797,-1142.09,0.00016435,2]
[326555164,1715106639807,-4336.59,0.00016435,2]
[326555167,1715106639817,-500.0,0.00016435,2]
[326555169,1715106639827,-500.0,0.00016435,2]
[326555171,1715106639837,-500.0,0.00016435,2]
[326555172,1715106639847,-1467.86,0.00016435,2]
[326555174,1715106639857,-500.0,0.00016435,2]
[326555176,1715106639872,-5947.18,0.00016435,2]
[326555178,1715106639882,-2414.23,0.00016435,2]
[326555180,1715106639893,-500.0,0.00016435,2]
[326555182,1715106639905,-637.94,0.00016435,2]
[326555184,1715106639915,-775.61,0.00016435,2]
[326555186,1715106639925,-2138.17,0.00016435,2]
[326555187,1715106639935,-500.0,0.00016435,2]
[326555188,1715106639948,-1037.24,0.00016435,2]
[326555189,1715106639959,-1190.93582093,0.00016436,2]
[326555190,1715106639969,-500.0,0.00016436,2]
[326555191,1715106639978,-500.0,0.00016436,2]
[326555192,1715106639988,-507.75,0.00016436,2]
[326555193,1715106639998,-500.0,0.00016436,2]
[326555194,1715106640009,-501.76,0.00016436,2]
[326555195,1715106640020,-500.0,0.00016436,2]
[326555196,1715106640030,-500.0,0.00016436,2]
[326555197,1715106640040,-748.74,0.00016436,2]
[326555198,1715106640050,-500.0,0.00016436,2]
[326555199,1715106640060,-500.0,0.00016436,2]
[326555200,1715106640070,-500.0,0.00016436,2]
[326555201,1715106640080,-500.0,0.00016436,2]
[326555202,1715106640089,-500.0,0.00016436,2]
[326555203,1715106640099,-500.0,0.00016436,2]
[326555204,1715106640108,-500.0,0.00016436,2]
[326555205,1715106640118,-500.0,0.00016436,2]
[326555206,1715106640127,-500.0,0.00016436,2]
[326555207,1715106640137,-604.18,0.00016436,2]
[326555208,1715106640146,-500.0,0.00016436,2]
[326555209,1715106640157,-500.0,0.00016436,2]
[326555210,1715106640167,-500.0,0.00016436,2]
[326555211,1715106640176,-1211.32,0.00016436,2]
[326555212,1715106640186,-552.16087072,0.00016436,2]
[326555213,1715106640195,-591.06,0.00016436,2]
[326555214,1715106640205,-500.0,0.00016436,2]
[326555215,1715106640215,-500.0,0.00016436,2]
[326555216,1715106640225,-500.0,0.00016436,2]
[326555217,1715106640235,-3456.71,0.00016436,2]
[326555218,1715106640244,-500.0,0.00016436,2]
[326555219,1715106640254,-3409.6,0.00016436,2]
[326555220,1715106640265,-500.0,0.00016436,2]
[326555221,1715106640275,-272.82435014,0.00016436,2]
[326555222,1715106640285,-500.0,0.00016436,2]
[326555223,1715106640294,-500.0,0.00016436,2]
[326555224,1715106640304,-3695.58,0.00016436,2]
[326555225,1715106640314,-500.0,0.00016436,2]
[326555226,1715106640324,-500.0,0.00016436,2]
[326555227,1715106640334,-972.91,0.00016436,2]
[326555228,1715106640343,-965.59,0.00016436,2]
[326555229,1715106640352,-500.0,0.00016436,2]
[326555230,1715106640363,-965.59,0.00016436,2]
[326555231,1715106640374,-791.64,0.00016436,2]
[326555232,1715106640383,-500.0,0.00016436,2]
[326555233,1715106640394,-531.04,0.00016436,2]
[326555234,1715106640404,-1089.03,0.00016436,2]
[326555235,1715106640414,-500.0,0.00016436,2]
[326555236,1715106640424,-3162.58,0.00016436,2]
[326555237,1715106640433,-500.0,0.00016436,2]
[326555238,1715106640443,-500.0,0.00016436,2]
[326555239,1715106640453,-1412.79,0.00016436,2]
[326555240,1715106640463,-500.0,0.00016436,2]
[326555241,1715106640472,-3481.07,0.00016436,2]
[326555242,1715106640482,-781.72,0.00016436,2]
[326555243,1715106640492,-20652.8,0.00016436,2]
[326555244,1715106640501,-500.0,0.00016436,2]
[326555245,1715106640511,-500.0,0.00016436,2]
[326555246,1715106640524,-151.0,0.00016436,2]
[326555247,1715106640534,-3587.65,0.00016436,2]
[326555248,1715106640544,-1470.29,0.00016436,2]
[326555249,1715106640555,-957.96,0.00016436,2]
[326555250,1715106640565,-3636.23,0.00016436,2]
[326555251,1715106640575,-4754.69,0.00016436,2]
[326555252,1715106640585,-500.0,0.00016436,2]
[326555253,1715106640595,-534.64,0.00016436,2]
[326555254,1715106640605,-500.0,0.00016436,2]
[326555255,1715106640616,-5375.18,0.00016436,2]
[326555256,1715106640626,-397.36335037,0.00016436,2]
[326555257,1715106640636,-500.0,0.00016436,2]
[326555258,1715106640646,-500.0,0.00016436,2]
[326555259,1715106640657,-500.0,0.00016437,2]
[326555260,1715106640667,-500.0,0.00016437,2]
[326555261,1715106640677,-500.0,0.00016437,2]
[326555262,1715106640688,-500.0,0.00016437,2]
[326555263,1715106640698,-582.27,0.00016437,2]
[326555264,1715106640707,-500.0,0.00016437,2]
[326555265,1715106640717,-500.0,0.00016437,2]
[326555266,1715106640727,-500.0,0.00016437,2]
[326555267,1715106640737,-500.0,0.00016437,2]
[326555268,1715106640747,-500.0,0.00016437,2]
[326555269,1715106640756,-151.0,0.00016437,2]
[326555270,1715106640768,-151.0,0.00016437,2]
[326555271,1715106640777,-151.0,0.00016437,2]
[326555272,1715106640786,-151.0,0.00016437,2]
[326555273,1715106640796,-732.22,0.00016437,2]
[326555274,1715106640805,-500.0,0.00016437,2]
[326555275,1715106640814,-500.0,0.00016437,2]
[326555276,1715106640824,-500.0,0.00016437,2]
[326555277,1715106640833,-500.0,0.00016437,2]
[326555278,1715106640843,-500.0,0.00016437,2]
[326555279,1715106640853,-692.1,0.00016437,2]
[326555280,1715106640866,-500.0,0.00016437,2]
[326555281,1715106640879,-500.0,0.00016437,2]
[326555282,1715106640889,-500.0,0.00016437,2]
[326555283,1715106640898,-500.0,0.00016437,2]
[326555284,1715106640909,-500.0,0.00016437,2]
[326555285,1715106640920,-500.0,0.00016437,2]
[326555286,1715106640929,-500.0,0.00016437,2]
[326555287,1715106640939,-587.53,0.00016437,2]
[326555288,1715106640951,-1662.68,0.00016437,2]
[326555289,1715106640961,-1060.27,0.00016437,2]
[326555290,1715106640971,-500.0,0.00016437,2]
[326555291,1715106640980,-735.03,0.00016437,2]
[326555292,1715106640990,-500.0,0.00016437,2]
[326555293,1715106640999,-500.0,0.00016437,2]
[326555294,1715106641009,-500.0,0.00016437,2]
[326555295,1715106641021,-500.0,0.00016437,2]
[326555296,1715106641030,-151.0,0.00016437,2]
[326555297,1715106641042,-500.0,0.00016437,2]
[326555298,1715106641053,-273.3300509,0.000165,2]
[326555299,1715106641062,-155.93588005,0.00016544,2]
[326555300,1715106641072,-194.28143751,0.0001661,2]
[326555301,1715106641081,-362.968533,0.00016624,2]
[326555302,1715106641091,-321.699817,0.00016624,2]
[326555303,1715106641100,-362.968534,0.00016624,2]
[326555304,1715106641111,-500.0,0.00016708,2]
[326555305,1715106641121,-500.0,0.00016708,2]
[326555306,1715106641131,-257.76340834,0.00016709,2]
[326555307,1715106641141,-500.0,0.00016709,2]
[326555308,1715106641150,-962.12,0.00016709,2]
[326555309,1715106641160,-500.0,0.00016709,2]
[326555310,1715106641169,-500.0,0.00016709,2]
[326555311,1715106641179,-1842.29,0.00016709,2]
[326555312,1715106641188,-816.68,0.00016709,2]
[326555313,1715106641198,-500.0,0.00016709,2]
[326555316,1715106641208,-500.0,0.00016709,2]
[326555318,1715106641218,-500.0,0.00016709,2]
[326555320,1715106641228,-965.59,0.00016709,2]
[326555322,1715106641237,-500.0,0.00016709,2]
[326555324,1715106641249,-3741.31,0.00016709,2]
[326555326,1715106641258,-1070.35,0.00016709,2]
[326555328,1715106641270,-500.0,0.00016709,2]
[326555330,1715106641280,-751.99,0.00016709,2]
[326555332,1715106641290,-1142.09,0.00016709,2]
[326555334,1715106641300,-4336.59,0.00016709,2]
[326555336,1715106641310,-500.0,0.00016709,2]
[326555338,1715106641319,-500.0,0.00016709,2]
[326555340,1715106641329,-500.0,0.00016709,2]
[326555342,1715106641338,-1467.86,0.00016709,2]
[326555344,1715106641348,-500.0,0.00016709,2]
[326555346,1715106641357,-5947.18,0.00016709,2]
[326555348,1715106641368,-2414.23,0.00016709,2]
[326555350,1715106641378,-151.0,0.00016709,2]
[326555352,1715106641388,-500.0,0.00016709,2]
[326555354,1715106641398,-637.94,0.00016709,2]
[326555356,1715106641407,-775.61,0.00016709,2]
[326555358,1715106641417,-2138.17,0.00016709,2]
[326555360,1715106641426,-500.0,0.00016709,2]
[326555362,1715106641436,-1037.24,0.00016709,2]
[326555364,1715106641446,-500.0,0.0001671,2]
[326555366,1715106641455,-500.0,0.0001671,2]
[326555368,1715106641465,-507.75,0.0001671,2]
[326555370,1715106641475,-500.0,0.0001671,2]
[326555372,1715106641484,-501.76,0.0001671,2]
[326555374,1715106641493,-500.0,0.0001671,2]
[326555376,1715106641503,-400.54270402,0.0001671,2]
[326555378,1715106641512,-748.74,0.0001671,2]
[326555379,1715106641524,-500.0,0.0001671,2]
[326555381,1715106641533,-500.0,0.0001671,2]
[326555383,1715106641542,-576.53685125,0.0001671,2]
[326555385,1715106641552,-500.0,0.0001671,2]
[326555387,1715106641562,-500.0,0.0001671,2]
[326555389,1715106641573,-500.0,0.0001671,2]
[326555391,1715106641582,-500.0,0.0001671,2]
[326555393,1715106641592,-500.0,0.0001671,2]
[326555395,1715106641602,-500.0,0.0001671,2]
[326555397,1715106641612,-500.0,0.0001671,2]
[326555399,1715106641621,-500.0,0.0001671,2]
[326555401,1715106641631,-500.0,0.0001671,2]
[326555403,1715106641640,-1211.32,0.0001671,2]
[326555405,1715106641650,-591.06,0.0001671,2]
[326555407,1715106641660,-151.0,0.0001671,2]
[326555409,1715106641669,-151.0,0.0001671,2]
[326555411,1715106641679,-500.0,0.0001671,2]
[326555413,1715106641689,-151.0,0.0001671,2]
[326555415,1715106641699,-151.0,0.0001671,2]
[326555417,1715106641709,-500.0,0.0001671,2]
[326555419,1715106641719,-500.0,0.0001671,2]
[326555420,1715106641728,-3456.71,0.0001671,2]
[326555422,1715106641738,-3409.6,0.0001671,2]
[326555424,1715106641748,-500.0,0.0001671,2]
[326555426,1715106641758,-500.0,0.0001671,2]
[326555428,1715106641771,-500.0,0.0001671,2]
[326555430,1715106641780,-500.0,0.0001671,2]
[326555432,1715106641790,-3695.58,0.0001671,2]
[326555434,1715106641799,-500.0,0.0001671,2]
[326555436,1715106641810,-500.0,0.0001671,2]
[326555438,1715106641820,-972.91,0.0001671,2]
[326555440,1715106641830,-500.0,0.0001671,2]
[326555442,1715106641840,-965.59,0.0001671,2]
[326555444,1715106641849,-965.59,0.0001671,2]
[326555446,1715106641859,-965.59,0.0001671,2]
[326555448,1715106641872,-791.64,0.0001671,2]
[326555450,1715106641884,-500.0,0.0001671,2]
[326555452,1715106641894,-531.04,0.0001671,2]
[326555453,1715106641904,-500.0,0.0001671,2]
[326555455,1715106641915,-3162.58,0.0001671,2]
[326555457,1715106641924,-500.0,0.0001671,2]
[326555459,1715106641935,-500.0,0.0001671,2]
[326555461,1715106641946,-1412.79,0.0001671,2]
[326555463,1715106641957,-500.0,0.0001671,2]
[326555465,1715106641966,-3481.07,0.0001671,2]
[326555467,1715106641976,-781.72,0.0001671,2]
[326555469,1715106641986,-20652.8,0.0001671,2]